fUSD/lending_fUSD_20251001
["ID","MTS","AMOUNT","RATE_DAILY","PERIOD"]
[388648977,1759296700751,-1296.8,0.00025205,2]
[388648978,1759296700760,-894.14,0.00025205,2]
[388648979,1759296700769,-500.0,0.00025205,2]
[388648980,1759296700778,-500.0,0.00025205,2]
[388648981,1759296700788,-954.51,0.00025205,2]
[388648982,1759296700798,-634.53,0.00025205,2]
[388648983,1759296700808,-500.0,0.00025205,2]
[388648984,1759296700817,-500.0,0.00025205,2]
[388648985,1759296700826,-500.0,0.00025205,2]
[388648986,1759296700835,-1008.41,0.00025205,2]
[388648987,1759296700844,-893.53,0.00025205,2]
[388648988,1759296700853,-500.0,0.00025205,2]
[388648989,1759296700862,-500.0,0.00025205,2]
[388648990,1759296700871,-500.0,0.00025205,2]
[388648991,1759296700880,-604.43,0.00025205,2]
[388648992,1759296700890,-512.42,0.00025205,2]
[388648993,1759296700899,-500.0,0.00025205,2]
[388648994,1759296700908,-500.0,0.00025205,2]
[388648995,1759296700917,-489.07667458,0.00025205,2]
[388648996,1759296700926,-500.0,0.00025205,2]
[388648997,1759296700935,-592.48,0.00025205,2]
[388648998,1759296700945,-500.0,0.00025205,2]
[388648999,1759296700954,-500.0,0.00025205,2]
[388649000,1759296700963,-500.0,0.00025205,2]
[388649001,1759296700974,-500.0,0.00025205,2]
[388649002,1759296700983,-504.50215169,0.00025205,2]
[388649003,1759296700992,-500.0,0.00025205,2]
[388649004,1759296701001,-500.0,0.00025205,2]
[388649005,1759296701011,-500.0,0.00025205,2]
[388649006,1759296701020,-759.41,0.00025205,2]
[388649007,1759296701030,-500.0,0.00025205,2]
[388649008,1759296701040,-575.67,0.00025205,2]
[388649009,1759296701050,-500.0,0.00025205,2]
[388649010,1759296701059,-500.0,0.00025205,2]
[388649011,1759296701068,-500.0,0.00025205,2]
[388649012,1759296701078,-777.56,0.00025205,2]
[388649013,1759296701087,-500.0,0.00025205,2]
[388649014,1759296701097,-500.0,0.00025205,2]
[388649015,1759296701106,-500.0,0.00025205,2]
[388649016,1759296701116,-500.0,0.00025205,2]
[388649017,1759296701125,-500.0,0.00025205,2]
[388649018,1759296701134,-500.0,0.00025205,2]
[388649019,1759296701143,-500.0,0.00025205,2]
[388649020,1759296701152,-500.0,0.00025205,2]
[388649021,1759296701162,-500.0,0.00025205,2]
[388649022,1759296701243,-500.0,0.00025205,2]
[388649023,1759296701252,-500.0,0.00025205,2]
[388649024,1759296701261,-659.9,0.00025205,2]
[388649025,1759296701270,-666.22,0.00025205,2]
[388649026,1759296701280,-967.5,0.00025205,2]
[388649027,1759296701290,-468.69050652,0.00025205,2]
[388649028,1759296701300,-500.0,0.00025205,2]
[388649029,1759296701309,-500.0,0.00025205,2]
[388649030,1759296701319,-494.89221218,0.00025205,2]
[388649031,1759296701328,-500.0,0.00025205,2]
[388649032,1759296701337,-577.33843563,0.00025205,2]
[388649033,1759296701346,-526.52,0.00025205,2]
[388649034,1759296701355,-502.0641478,0.00025205,2]
[388649035,1759296701364,-520.64,0.00025205,2]
[388649036,1759296701373,-500.0,0.00025205,2]
[388649037,1759296701381,-525.89685827,0.00025205,2]
[388649038,1759296701390,-3808.44,0.00025205,2]
[388649039,1759296701399,-500.0,0.00025205,2]
[388649040,1759296701408,-500.0,0.00025205,2]
[388649041,1759296701416,-232.27968269,0.00025205,2]
[388649042,1759296701425,-500.0,0.00025205,2]
[388649043,1759296701435,-500.0,0.00025205,2]
[388649044,1759296701444,-500.0,0.00025205,2]
[388649045,1759296701453,-695.02,0.00025205,2]
[388649046,1759296701463,-500.0,0.00025205,2]
[388649047,1759296701472,-1282.96,0.00025205,2]
[388649048,1759296701481,-500.0,0.00025205,2]
[388649049,1759296701489,-500.0,0.00025205,2]
[388649050,1759296701498,-755.69,0.00025205,2]
[388649051,1759296701507,-503.13847066,0.00025205,2]
[388649052,1759296701517,-500.0,0.00025205,2]
[388649053,1759296701526,-915.1,0.00025205,2]
[388649054,1759296701535,-2406.78,0.00025205,2]
[388649055,1759296701546,-500.0,0.00025205,2]
[388649056,1759296701555,-500.0,0.00025205,2]
[388649057,1759296701564,-500.0,0.00025205,2]
[388649058,1759296701572,-2589.25,0.00025205,2]
[388649059,1759296701582,-500.0,0.00025205,2]
[388649060,1759296701591,-500.0,0.00025205,2]
[388649061,1759296701601,-500.0,0.00025205,2]
[388649062,1759296701610,-500.0,0.00025205,2]
[388649063,1759296701619,-573.39,0.00025205,2]
[388649064,1759296701628,-500.0,0.00025205,2]
[388649065,1759296701637,-500.0,0.00025205,2]
[388649066,1759296701646,-500.0,0.00025205,2]
[388649067,1759296701655,-1153.21,0.00025205,2]
[388649068,1759296701664,-500.0,0.00025205,2]
[388649069,1759296701676,-500.0,0.00025205,2]
[388649070,1759296701685,-1000.0,0.00025205,2]
[388649071,1759296701694,-4313.53,0.00025205,2]
[388649072,1759296701703,-500.0,0.00025205,2]
[388649073,1759296701712,-2308.67,0.00025205,2]
[388649074,1759296701723,-748.42,0.00025205,2]
[388649075,1759296701732,-653.7,0.00025205,2]
[388649076,1759296701742,-3610.59,0.00025205,2]
[388649077,1759296701753,-1044.39,0.00025205,2]
[388649078,1759296701762,-571.37,0.00025205,2]
[388649079,1759296701771,-1515.23,0.00025205,2]
[388649080,1759296701780,-354.15835102,0.00025205,2]
[388649081,1759296701789,-500.0,0.00025205,2]
[388649082,1759296701800,-1007.33,0.00025205,2]
[388649083,1759296701809,-500.0,0.00025205,2]
[388649084,1759296701818,-500.0,0.00025205,2]
[388649085,1759296701827,-500.0,0.00025205,2]
[388649086,1759296701836,-751.37,0.00025205,2]
[388649087,1759296701844,-5603.21,0.00025205,2]
[388649088,1759296701854,-500.0,0.00025205,2]
[388649089,1759296701863,-500.0,0.00025205,2]
[388649090,1759296701872,-500.0,0.00025205,2]
[388649091,1759296701881,-500.0,0.00025205,2]
[388649092,1759296701891,-308.25739612,0.00025205,2]
[388649093,1759296701900,-1549.03,0.00025205,2]
[388649094,1759296701910,-2228.19,0.00025205,2]
[388649095,1759296701919,-518.65,0.00025205,2]
[388649096,1759296701928,-2047.36,0.00025205,2]
[388649097,1759296701937,-558.29,0.00025205,2]
[388649098,1759296701946,-500.0,0.00025205,2]
[388649099,1759296701955,-1360.53,0.00025205,2]
[388649100,1759296701964,-2365.91,0.00025205,2]
[388649101,1759296701973,-500.0,0.00025205,2]
[388649102,1759296701982,-500.0,0.00025205,2]
[388649103,1759296701991,-500.0,0.00025205,2]
[388649104,1759296702000,-3048.21,0.00025205,2]
[388649105,1759296702008,-1171.01,0.00025205,2]
[388649106,1759296702017,-527.29,0.00025205,2]
[388649107,1759296702026,-802.18,0.00025205,2]
[388649108,1759296702035,-500.0,0.00025205,2]
[388649109,1759296702044,-500.0,0.00025205,2]
[388649110,1759296702053,-500.0,0.00025205,2]
[388649111,1759296702063,-2747.89,0.00025205,2]
[388649112,1759296702072,-500.0,0.00025205,2]
[388649113,1759296702082,-2195.98,0.00025205,2]
[388649114,1759296702091,-500.0,0.00025205,2]
[388649115,1759296702100,-3284.56,0.00025205,2]
[388649116,1759296702109,-503.37,0.00025205,2]
[388649117,1759296702118,-500.0,0.00025205,2]
[388649118,1759296702126,-1145.02,0.00025205,2]
[388649119,1759296702135,-1934.12,0.00025205,2]
[388649120,1759296702144,-2040.46,0.00025205,2]
[388649121,1759296702153,-798.66,0.00025205,2]
[388649122,1759296702162,-500.0,0.00025205,2]
[388649123,1759296702171,-501.82,0.00025205,2]
[388649124,1759296702180,-2940.77,0.00025205,2]
[388649125,1759296702189,-4576.56,0.00025205,2]
[388649126,1759296702199,-500.0,0.00025205,2]
[388649127,1759296702208,-1445.93,0.00025205,2]
[388649128,1759296702217,-1758.89,0.00025205,2]
[388649129,1759296702227,-3477.9,0.00025205,2]
[388649130,1759296702236,-500.0,0.00025205,2]
[388649131,1759296702245,-314.09961132,0.00025205,2]
[388649132,1759296702254,-518.94,0.00025205,2]
[388649133,1759296702263,-1140.85,0.00025205,2]
[388649134,1759296702272,-1848.71,0.00025205,2]
[388649135,1759296702281,-1534.95,0.00025205,2]
[388649136,1759296702290,-901.38,0.00025205,2]
[388649137,1759296702299,-165.82542055,0.00025205,2]
[388649138,1759296702308,-4413.22,0.00025205,2]
[388649139,1759296702317,-500.0,0.00025205,2]
[388649140,1759296702326,-500.0,0.00025205,2]
[388649141,1759296702335,-1372.88,0.00025205,2]
[388649142,1759296702344,-500.0,0.00025205,2]
[388649143,1759296702354,-3397.58,0.00025205,2]
[388649144,1759296702363,-502.6643361,0.00025205,2]
[388649145,1759296702372,-505.02,0.00025205,2]
[388649146,1759296702382,-3652.05,0.00025205,2]
[388649147,1759296702391,-4150.56,0.00025205,2]
[388649148,1759296702400,-509.2,0.00025205,2]
[388649149,1759296702410,-939.27,0.00025205,2]
[388649150,1759296702419,-4592.5,0.00025205,2]
[388649151,1759296702428,-500.0,0.00025205,2]
[388649152,1759296702436,-1518.24,0.00025205,2]
[388649153,1759296702446,-500.0,0.00025205,2]
[388649154,1759296702455,-500.0,0.00025205,2]
[388649155,1759296702465,-2689.94,0.00025205,2]
[388649156,1759296702475,-500.0,0.00025205,2]
[388649157,1759296702484,-500.25,0.00025205,2]
[388649158,1759296702492,-885.08,0.00025205,2]
[388649159,1759296702502,-3167.96,0.00025205,2]
[388649160,1759296702511,-886.56,0.00025205,2]
[388649161,1759296702520,-500.0,0.00025205,2]
[388649162,1759296702529,-589.43,0.00025205,2]
[388649163,1759296702538,-173.86100397,0.00025205,2]
[388649164,1759296702548,-529.28,0.00025205,2]
[388649165,1759296702558,-500.0,0.00025205,2]
[388649166,1759296702567,-1454.86,0.00025205,2]
[388649167,1759296702577,-633.88,0.00025205,2]
[388649168,1759296702586,-500.0,0.00025205,2]
[388649169,1759296702596,-1336.06,0.00025205,2]
[388649170,1759296702604,-500.0,0.00025205,2]
[388649171,1759296702614,-500.0,0.00025205,2]
[388649172,1759296702624,-3292.88,0.00025205,2]
[388649173,1759296702633,-709.2,0.00025205,2]
[388649174,1759296702642,-500.0,0.00025205,2]
[388649175,1759296702652,-744.9,0.00025205,2]
[388649176,1759296702661,-811.76,0.00025205,2]
[388649177,1759296702670,-2820.78,0.00025205,2]
[388649178,1759296702683,-777.93,0.00025205,2]
[388649179,1759296702692,-500.0,0.00025205,2]
[388649180,1759296702701,-500.0,0.00025205,2]
[388649181,1759296702710,-500.0,0.00025205,2]
[388649182,1759296702719,-2879.12,0.00025205,2]
[388649183,1759296702728,-500.0,0.00025205,2]
[388649184,1759296702738,-2552.71,0.00025205,2]
[388649185,1759296702748,-3960.23,0.00025205,2]
[388649186,1759296702757,-885.46,0.00025205,2]
[388649187,1759296702766,-432.41529069,0.00025205,2]
[388649188,1759296702775,-2068.97,0.00025205,2]
[388649189,1759296702783,-3689.64,0.00025205,2]
[388649190,1759296702792,-2771.64,0.00025205,2]
[388649191,1759296702802,-500.0,0.00025205,2]
[388649192,1759296702811,-2279.06,0.00025205,2]
[388649193,1759296702820,-500.0,0.00025205,2]
[388649194,1759296702829,-500.0,0.00025205,2]
[388649195,1759296702838,-651.28,0.00025205,2]
[388649196,1759296702847,-500.0,0.00025205,2]
[388649197,1759296702856,-500.0,0.00025205,2]
[388649198,1759296702875,-4078.26,0.00025205,2]
[388649199,1759296702886,-2778.38,0.00025205,2]
[388649200,1759296702895,-796.02,0.00025205,2]
[388649201,1759296702905,-500.0,0.00025205,2]
[388649202,1759296702914,-1545.47,0.00025205,2]
[388649203,1759296702923,-628.74599216,0.00025205,2]
[388649204,1759296702932,-500.0,0.00025205,2]
[388649205,1759296702941,-2694.5,0.00025205,2]
[388649206,1759296702951,-783.28,0.00025205,2]
[388649207,1759296702960,-500.0,0.00025205,2]
[388649208,1759296702969,-3514.66,0.00025205,2]
[388649209,1759296702979,-1587.45,0.00025205,2]
[388649210,1759296702988,-500.0,0.00025205,2]
[388649211,1759296702998,-548.82,0.00025205,2]
[388649212,1759296703007,-500.0,0.00025205,2]
[388649213,1759296703018,-500.0,0.00025205,2]
[388649214,1759296703027,-824.07,0.00025205,2]
[388649215,1759296703037,-2021.31,0.00025205,2]
[388649216,1759296703046,-2588.41,0.00025205,2]
[388649217,1759296703056,-1040.91,0.00025205,2]
[388649218,1759296703065,-500.0,0.00025205,2]
[388649219,1759296703074,-4440.26,0.00025205,2]
[388649220,1759296703084,-528.44717662,0.00025205,2]
[388649221,1759296703093,-1107.24,0.00025205,2]
[388649222,1759296703103,-500.0,0.00025205,2]
[388649223,1759296703113,-702.61,0.00025205,2]
[388649224,1759296703122,-3532.49,0.00025205,2]
[388649225,1759296703131,-2512.63,0.00025205,2]
[388649226,1759296703141,-500.0,0.00025205,2]
[388649227,1759296703150,-500.83474564,0.00025205,2]
[388649228,1759296703159,-3108.67,0.00025205,2]
[388649229,1759296703170,-500.0,0.00025205,2]
[388649230,1759296703179,-430.58110395,0.00025205,2]
[388649231,1759296703188,-573.99,0.00025205,2]
[388649232,1759296703198,-500.0,0.00025205,2]
[388649233,1759296703207,-2494.93,0.00025205,2]
[388649234,1759296703216,-708.53,0.00025205,2]
[388649235,1759296703226,-500.0,0.00025205,2]
[388649236,1759296703236,-500.0,0.00025205,2]
[388649237,1759296703245,-500.0,0.00025205,2]
[388649238,1759296703254,-1003.87,0.00025205,2]
[388649239,1759296703268,-500.0,0.00025205,2]
[388649240,1759296703279,-742.55,0.00025205,2]
[388649241,1759296703288,-500.0,0.00025205,2]
[388649242,1759296703298,-515.99,0.00025205,2]
[388649243,1759296703308,-500.0,0.00025205,2]
[388649244,1759296703318,-2938.24,0.00025205,2]
[388649245,1759296703328,-500.0,0.00025205,2]
[388649246,1759296703338,-500.0,0.00025205,2]
[388649247,1759296703348,-2467.13,0.00025205,2]
[388649248,1759296703359,-500.0,0.00025205,2]
[388649249,1759296703368,-2688.62,0.00025205,2]
[388649250,1759296703378,-500.0,0.00025205,2]
[388649251,1759296703387,-500.0,0.00025205,2]
[388649252,1759296703396,-500.0,0.00025205,2]
[388649253,1759296703406,-527.72,0.00025205,2]
[388649254,1759296703415,-500.0,0.00025205,2]
[388649255,1759296703426,-2372.98,0.00025205,2]
[388649256,1759296703438,-2923.85,0.00025205,2]
[388649257,1759296703447,-500.0,0.00025205,2]
[388649258,1759296703457,-500.0,0.00025205,2]
[388649259,1759296703467,-3718.91,0.00025205,2]
[388649260,1759296703477,-1441.82,0.00025205,2]
[388649261,1759296703486,-500.0,0.00025205,2]
[388649262,1759296703496,-500.0,0.00025205,2]
[388649263,1759296703506,-1282.85,0.00025205,2]
[388649264,1759296703515,-447.13932391,0.00025205,2]
[388649265,1759296703524,-500.0,0.00025205,2]
[388649266,1759296703534,-500.0,0.00025205,2]
[388649267,1759296703543,-3099.15,0.00025205,2]
[388649268,1759296703554,-1353.38,0.00025205,2]
[388649269,1759296703564,-1535.61,0.00025205,2]
[388649270,1759296703575,-3778.07,0.00025205,2]
[388649271,1759296703585,-677.62,0.00025205,2]
[388649272,1759296703595,-500.0,0.00025205,2]
[388649273,1759296703605,-2405.03,0.00025205,2]
[388649274,1759296703615,-367.12715749,0.00025205,2]
[388649275,1759296703624,-1237.59,0.00025205,2]
[388649276,1759296703634,-1232.28,0.00025205,2]
[388649277,1759296703643,-500.0,0.00025205,2]
[388649278,1759296703653,-500.0,0.00025205,2]
[388649279,1759296703662,-3566.55,0.00025205,2]
[388649280,1759296703680,-500.0,0.00025205,2]
[388649281,1759296703691,-641.08,0.00025205,2]
[388649282,1759296703700,-2331.04,0.00025205,2]
[388649283,1759296703710,-4101.68,0.00025205,2]
[388649284,1759296703719,-500.0,0.00025205,2]
[388649285,1759296703729,-939.03,0.00025205,2]
[388649286,1759296703739,-724.12,0.00025205,2]
[388649287,1759296703749,-1210.01,0.00025205,2]
[388649288,1759296703761,-3826.16,0.00025205,2]
[388649289,1759296703771,-500.0,0.00025205,2]
[388649290,1759296703780,-500.0,0.00025205,2]
[388649291,1759296703791,-570.35,0.00025205,2]
[388649292,1759296703800,-500.0,0.00025205,2]
[388649293,1759296703810,-3044.18,0.00025205,2]
[388649294,1759296703819,-1506.14,0.00025205,2]
[388649295,1759296703829,-2447.89,0.00025205,2]
[388649296,1759296703839,-500.0,0.00025205,2]
[388649297,1759296703848,-1672.9,0.00025205,2]
[388649298,1759296703858,-500.0,0.00025205,2]
[388649299,1759296703867,-552.64,0.00025205,2]
[388649300,1759296703877,-1895.54,0.00025205,2]
[388649301,1759296703886,-3112.7,0.00025205,2]
[388649302,1759296703896,-2348.57,0.00025205,2]
[388649303,1759296703906,-1145.6,0.00025205,2]
[388649304,1759296703915,-500.0,0.00025205,2]
[388649305,1759296703925,-500.0,0.00025205,2]
[388649306,1759296703936,-500.0,0.00025205,2]
[388649307,1759296703946,-500.0,0.00025205,2]
[388649308,1759296703955,-500.0,0.00025205,2]
[388649309,1759296703964,-971.72,0.00025205,2]
[388649310,1759296703974,-621.73,0.00025205,2]
[388649311,1759296703984,-500.0,0.00025205,2]
[388649312,1759296703994,-1385.3,0.00025205,2]
[388649313,1759296704004,-709.64,0.00025205,2]
[388649314,1759296704014,-901.02,0.00025205,2]
[388649315,1759296704023,-500.0,0.00025205,2]
[388649316,1759296704033,-2950.55,0.00025205,2]
[388649317,1759296704043,-1015.1,0.00025205,2]
[388649318,1759296704053,-500.0,0.00025205,2]
[388649319,1759296704066,-685.7,0.00025205,2]
[388649320,1759296704076,-2154.77,0.00025205,2]
[388649321,1759296704085,-2820.11,0.00025205,2]
[388649322,1759296704095,-631.97,0.00025205,2]
[388649323,1759296704106,-3631.2,0.00025205,2]
[388649324,1759296704116,-2159.27,0.00025205,2]
[388649325,1759296704126,-3611.67,0.00025205,2]
[388649326,1759296704135,-3622.05,0.00025205,2]
[388649327,1759296704145,-2076.29,0.00025205,2]
[388649328,1759296704155,-3154.32,0.00025205,2]
[388649329,1759296704164,-3248.56,0.00025205,2]
[388649330,1759296704174,-500.0,0.00025205,2]
[388649331,1759296704184,-500.0,0.00025205,2]
[388649332,1759296704194,-2225.15,0.00025205,2]
[388649333,1759296704204,-1053.1,0.00025205,2]
[388649334,1759296704213,-709.42,0.00025205,2]
[388649335,1759296704223,-794.16,0.00025205,2]
[388649336,1759296704234,-3308.42,0.00025205,2]
[388649337,1759296704244,-601.0,0.00025205,2]
[388649338,1759296704253,-885.03,0.00025205,2]
[388649339,1759296704263,-724.38,0.00025205,2]
[388649340,1759296704273,-500.0,0.00025205,2]
[388649341,1759296704284,-776.72,0.00025205,2]
[388649342,1759296704294,-500.0,0.00025205,2]
[388649343,1759296704304,-500.0,0.00025205,2]
[388649344,1759296704314,-500.0,0.00025205,2]
[388649345,1759296704323,-500.0,0.00025205,2]
[388649346,1759296704333,-1644.38,0.00025205,2]
[388649347,1759296704342,-676.69,0.00025205,2]
[388649348,1759296704351,-820.11,0.00025205,2]
[388649349,1759296704360,-500.0,0.00025205,2]
[388649350,1759296704370,-2053.62,0.00025205,2]
[388649351,1759296704379,-500.0,0.00025205,2]
[388649352,1759296704389,-1756.35,0.00025205,2]
[388649353,1759296704399,-500.0,0.00025205,2]
[388649354,1759296704409,-669.61,0.00025205,2]
[388649355,1759296704419,-500.0,0.00025205,2]
[388649356,1759296704428,-500.0,0.00025205,2]
[388649357,1759296704438,-500.0,0.00025205,2]
[388649358,1759296704447,-731.84,0.00025205,2]
[388649359,1759296704457,-1695.42,0.00025205,2]
[388649360,1759296704469,-1804.34,0.00025205,2]
[388649361,1759296704479,-500.0,0.00025205,2]
[388649362,1759296704488,-596.2,0.00025205,2]
[388649363,1759296704498,-3847.2,0.00025205,2]
[388649364,1759296704508,-500.0,0.00025205,2]
[388649365,1759296704517,-3493.6,0.00025205,2]
[388649366,1759296704527,-4086.01,0.00025205,2]
[388649367,1759296704536,-500.0,0.00025205,2]
[388649368,1759296704546,-500.0,0.00025205,2]
[388649369,1759296704557,-500.0,0.00025205,2]
[388649370,1759296704566,-1555.82,0.00025205,2]
[388649371,1759296704576,-500.0,0.00025205,2]
[388649372,1759296704587,-500.0,0.00025205,2]
[388649373,1759296704596,-2860.0,0.00025205,2]
[388649374,1759296704606,-2732.61,0.00025205,2]
[388649375,1759296704616,-500.0,0.00025205,2]
[388649376,1759296704625,-573.02,0.00025205,2]
[388649377,1759296704635,-500.0,0.00025205,2]
[388649378,1759296704645,-517.71,0.00025205,2]
[388649379,1759296704656,-3751.63,0.00025205,2]
[388649380,1759296704665,-500.0,0.00025205,2]
[388649381,1759296704677,-2019.05,0.00025205,2]
[388649382,1759296704687,-606.86346216,0.00025205,2]
[388649383,1759296704698,-500.0,0.00025205,2]
[388649384,1759296704707,-598.2,0.00025205,2]
[388649385,1759296704719,-500.0,0.00025205,2]
[388649386,1759296704731,-500.0,0.00025205,2]
[388649387,1759296704742,-500.0,0.00025205,2]
[388649388,1759296704753,-500.0,0.00025205,2]
[388649389,1759296704763,-7990.04,0.00025205,2]
[388649390,1759296704772,-4486.45,0.00025205,2]
[388649391,1759296704781,-738.28,0.00025205,2]
[388649392,1759296704791,-256.88672393,0.00025205,2]
[388649393,1759296704800,-500.0,0.00025205,2]
[388649394,1759296704810,-1546.63,0.00025205,2]
[388649395,1759296704819,-3126.4,0.00025205,2]
[388649396,1759296704828,-1635.7,0.00025205,2]
[388649397,1759296704839,-2457.38,0.00025205,2]
[388649398,1759296704850,-1445.21,0.00025205,2]
[388649399,1759296704863,-690.09,0.00025205,2]
[388649400,1759296704872,-500.0,0.00025205,2]
[388649401,1759296704882,-500.0,0.00025205,2]
[388649402,1759296704891,-11909.44,0.00025205,2]
[388649403,1759296704901,-1979.38,0.00025205,2]
[388649404,1759296704910,-500.0,0.00025205,2]
[388649405,1759296704920,-1600.75,0.00025205,2]
[388649406,1759296704930,-2453.23,0.00025205,2]
[388649407,1759296704939,-2308.42,0.00025205,2]
[388649408,1759296704949,-500.0,0.00025205,2]
[388649409,1759296704958,-2588.73,0.00025205,2]
[388649410,1759296704968,-500.0,0.00025205,2]
[388649411,1759296704977,-511.23,0.00025205,2]
[388649412,1759296704988,-1211.87,0.00025205,2]
[388649413,1759296705003,-621.49,0.00025205,2]
[388649414,1759296705014,-2963.23,0.00025205,2]
[388649415,1759296705023,-500.0,0.00025205,2]
[388649416,1759296705033,-574.67,0.00025205,2]
[388649417,1759296705043,-1467.69,0.00025205,2]
[388649418,1759296705053,-500.0,0.00025205,2]
[388649419,1759296705063,-4912.85,0.00025205,2]
[388649420,1759296705074,-994.12,0.00025205,2]
[388649421,1759296705084,-2288.75,0.00025205,2]
[388649422,1759296705094,-500.0,0.00025205,2]
[388649423,1759296705103,-1354.99,0.00025205,2]
[388649424,1759296705113,-2663.51,0.00025205,2]
[388649425,1759296705123,-500.0,0.00025205,2]
[388649426,1759296705134,-4656.47,0.00025205,2]
[388649427,1759296705144,-577.06,0.00025205,2]
[388649428,1759296705159,-4264.19,0.00025205,2]
[388649429,1759296705175,-3469.7,0.00025205,2]
[388649430,1759296705186,-500.0,0.00025205,2]
[388649431,1759296705197,-1642.77,0.00025205,2]
[388649432,1759296705208,-761.05,0.00025205,2]
[388649433,1759296705218,-1012.4,0.00025205,2]
[388649434,1759296705228,-3224.21,0.00025205,2]
[388649435,1759296705239,-501.31,0.00025205,2]
[388649436,1759296705249,-3623.64,0.00025205,2]
[388649437,1759296705260,-500.0,0.00025205,2]
[388649438,1759296705270,-500.0,0.00025205,2]
[388649439,1759296705281,-1320.77,0.00025205,2]
[388649440,1759296705291,-2198.19,0.00025205,2]
[388649441,1759296705302,-8978.16,0.00025205,2]
[388649442,1759296705312,-1584.71,0.00025205,2]
[388649443,1759296705322,-500.0,0.00025205,2]
[388649444,1759296705332,-500.0,0.00025205,2]
[388649445,1759296705342,-1633.38,0.00025205,2]
[388649446,1759296705352,-500.0,0.00025205,2]
[388649447,1759296705362,-2851.67,0.00025205,2]
[388649448,1759296705631,-500.0,0.00025205,2]
[388649449,1759296705649,-9671.85,0.00025205,2]
[388649450,1759296705658,-397.93798983,0.00025205,2]
[388649451,1759296705667,-6644.47,0.00025205,2]
[388649452,1759296705682,-932.46,0.00025205,2]
[388649453,1759296705691,-500.0,0.00025205,2]
[388649454,1759296705700,-2775.82,0.00025205,2]
[388649455,1759296705710,-1898.86,0.00025205,2]
[388649456,1759296705722,-794.96,0.00025205,2]
[388649457,1759296705732,-500.0,0.00025205,2]
[388649458,1759296705741,-500.0,0.00025205,2]
[388649459,1759296705752,-801.74,0.00025205,2]
[388649460,1759296705762,-500.0,0.00025205,2]
[388649461,1759296705773,-2040.12,0.00025205,2]
[388649462,1759296705783,-2978.08,0.00025205,2]
[388649463,1759296705793,-500.0,0.00025205,2]
[388649464,1759296705803,-541.42,0.00025205,2]
[388649465,1759296705814,-3095.38,0.00025205,2]
[388649466,1759296705825,-7691.07,0.00025205,2]
[388649467,1759296705835,-500.0,0.00025205,2]
[388649468,1759296705844,-2146.61,0.00025205,2]
[388649469,1759296705853,-500.0,0.00025205,2]
[388649470,1759296705862,-500.0,0.00025205,2]
[388649471,1759296705873,-1449.36,0.00025205,2]
[388649472,1759296705883,-500.0,0.00025205,2]
[388649473,1759296705891,-3557.07,0.00025205,2]
[388649474,1759296705902,-4440.59,0.00025205,2]
[388649475,1759296705911,-629.57,0.00025205,2]
[388649476,1759296705920,-1452.24,0.00025205,2]